Department family,Entity,Date,Expense type,Expense area,Supplier,Transaction number,Amount,Description
MOJ,CAFCASS,01 August 2017,Rent,HQ,GVA re London & Continental Railways,1026724,66191.62,Manchester 7th Fl Rent 24/06/17-28/09/17
MOJ,CAFCASS,01 August 2017,Service Charge,HQ,GVA re London & Continental Railways,1026724,16951.2,Manchester 7th Fl S/C 24/06/17-28/09/17
MOJ,CAFCASS,02 August 2017,Agency Practitioners,Op Service Areas,Eden Brown Ltd,1027190,41860.42,Agency Staff WE 09.07.2017
MOJ,CAFCASS,02 August 2017,Agency Practitioners,Op Service Areas,Medicare First Ltd,1027078,37008.44,Agency Staff w/e 02/07/17
MOJ,CAFCASS,07 August 2017,Agency Practitioners,Op Service Areas,Caritas Recruitment Ltd,1026932,40354.66,Agency Staff W/E 02/07/2017
MOJ,CAFCASS,07 August 2017,Agency Practitioners,Op Service Areas,Caritas Recruitment Ltd,1027345,34014.5,Agency Staff w/e 09/07/2017
MOJ,CAFCASS,07 August 2017,Agency Practitioners,Op Service Areas,Eden Brown Ltd,1027342,25679.81,Agency Staff W/E 23/07/17
MOJ,CAFCASS,07 August 2017,Agency Practitioners,Op Service Areas,Medicare First Ltd,1027291,26872.1,Agency Staff WE 09/07/2017
MOJ,CAFCASS,08 August 2017,Agency Practitioners,Op Service Areas,Sanctuary Personnel Ltd,1026936,38569.04,Agency Staff W.E 02/07/2017
MOJ,CAFCASS,08 August 2017,Agency Practitioners,Op Service Areas,Sanctuary Personnel Ltd,1026943,34493.28,Agency Staff WE 09.07.2017
MOJ,CAFCASS,08 August 2017,Mobile Call Charges,HQ,Vodafone,1027466,12466.94,Vodafone Call charge Jun 17
MOJ,CAFCASS,08 August 2017,Mobile Phone Rental,HQ,Vodafone,1027466,22486.4,Vodafone Line Rental Jul 17
MOJ,CAFCASS,08 August 2017,Travel and Subs - UK (Non-Taxa,HQ,Redfern Travel Limited,1027460,10771.93,Redfern hotel Jul 17
MOJ,CAFCASS,08 August 2017,Travel and Subs - UK (Non-Taxa,HQ,Redfern Travel Limited,1027460,28859.41,Redfern Jul 17
MOJ,CAFCASS,08 August 2017,Travel and Subs - UK (Non-Taxa,Op Service Areas,Redfern Travel Limited,1027460,7600.1,Redfern hotel Jul 17
MOJ,CAFCASS,08 August 2017,Travel and Subs - UK (Non-Taxa,Op Service Areas,Redfern Travel Limited,1027460,42919.12,Redfern Jul 17
MOJ,CAFCASS,09 August 2017,Agency Practitioners,Op Service Areas,Caritas Recruitment Ltd,1027202,36322.39,Agency Staff W/E 16/07/2017
MOJ,CAFCASS,09 August 2017,Agency Practitioners,Op Service Areas,Sanctuary Personnel Ltd,1027087,51882.56,Agency Staff WE 16.07.2017
MOJ,CAFCASS,14 August 2017,Agency Practitioners,Op Service Areas,Medicare First Ltd,1027517,26224.57,Agency Staff WE 16/07/2017
MOJ,CAFCASS,16 August 2017,Agency Practitioners,Op Service Areas,Eden Brown Ltd,1027221,36393.14,Agency Staff WE 16/07/17
MOJ,CAFCASS,16 August 2017,Other Fees/Services,HQ,Home Office,1027928,91838,Annual PNC charge 2017/18
MOJ,CAFCASS,16 August 2017,Other Fees/Services,HQ,Home Office,1027928,37500,"Schengen Information system (for police checks) -11.

",,,
MOJ,CAFCASS,17 August 2017,Agency Practitioners,Op Service Areas,Caritas Recruitment Ltd,1027845,32482.2,Agency Staff W/E 23/07/2017
MOJ,CAFCASS,17 August 2017,Rent,HQ,University of Warwick Science Park,1027666,34370.01,NBC Rent Aug17
MOJ,CAFCASS,17 August 2017,Service Charge,HQ,University of Warwick Science Park,1027666,3368.24,NBC Serv Chg Aug17
MOJ,CAFCASS,18 August 2017,Agency Practitioners,Op Service Areas,Sanctuary Personnel Ltd,1027516,35327.6,Agency Staff WE 30.07.2017
MOJ,CAFCASS,18 August 2017,N-Cnt Computer Services and Ma,HQ,Bytes Software Services Ltd,1028008,13722.19,Sharepoint SQL Pard code - 76P-01715
MOJ,CAFCASS,18 August 2017,N-Cnt Computer Services and Ma,HQ,Bytes Software Services Ltd,1028008,37000.13,Sharepoint SQL Part code - 7JQ-00663
MOJ,CAFCASS,21 August 2017,Rates,HQ,DWP RM Receipts and SDP t/a DWP,1028228,8312.58,Leeds Rates Aug 17
MOJ,CAFCASS,21 August 2017,Rent,HQ,DWP RM Receipts and SDP t/a DWP,1028226,46549.06,Leeds Rent June 17
MOJ,CAFCASS,21 August 2017,Rent,HQ,DWP RM Receipts and SDP t/a DWP,1028228,47086.97,Leeds Rent Jul 17
MOJ,CAFCASS,21 August 2017,Service Charge,HQ,DWP RM Receipts and SDP t/a DWP,1028228,2245.38,Leeds Serv Chg Jul 17
MOJ,CAFCASS,24 August 2017,Agency Practitioners,Op Service Areas,Eden Brown Ltd,1028240,50691.59,Agency Staff W/E 30/07/17
MOJ,CAFCASS,25 August 2017,Agency Practitioners,Op Service Areas,Eden Brown Ltd,1028479,28129.03,Agency Staff W/E 06/08/17
MOJ,CAFCASS,25 August 2017,Internal Auditor Fees,HQ,HM Treasury t/a GIAA,1028456,37800,006 - 1718 Internal Audit Q1
MOJ,CAFCASS,30 August 2017,Agency Practitioners,Op Service Areas,Medicare First Ltd,1028635,30626.74,Agency Staff WE 30/07/17
MOJ,CAFCASS,31 August 2017,Agency Practitioners,Op Service Areas,Medicare First Ltd,1028300,31079.78,Agency Staff W/E 23/04/2017
